fUSD/lending_fUSD_20260526
["ID","MTS","AMOUNT","RATE_DAILY","PERIOD"]
[423009610,1779745871000,-1492.525256,0.00027397,2]
[423009609,1779745871000,-1492.525256,0.00027397,2]
[423009613,1779745871000,-1492.525256,0.00027397,2]
[423009620,1779745871000,-151.524391,0.00027397,2]
[423009621,1779745871000,-151.524391,0.00027397,2]
[423009608,1779745871000,-1492.525256,0.00027397,2]
[423009611,1779745871000,-1492.525256,0.00027397,2]
[423009626,1779745871000,-151.524391,0.00027397,2]
[423009623,1779745871000,-151.524391,0.00027397,2]
[423009619,1779745871000,-151.524391,0.00027397,2]
[423009624,1779745871000,-151.524391,0.00027397,2]
[423009616,1779745871000,-151.524391,0.00027397,2]
[423009618,1779745871000,-151.524391,0.00027397,2]
[423009617,1779745871000,-151.524391,0.00027397,2]
[423009614,1779745871000,-1492.525256,0.00027397,2]
[423009612,1779745871000,-1492.525256,0.00027397,2]
[423009622,1779745871000,-151.524391,0.00027397,2]
[423009615,1779745871000,-1492.525265,0.00027397,2]
[423009697,1779745872000,-300.0,0.00027397,2]
[423009700,1779745872000,-500.0,0.000274,2]
[423009698,1779745872000,-897.71,0.000274,7]
[423009695,1779745872000,-152.73300138,0.00027397,30]
[423009696,1779745872000,-159.53163546,0.00027397,30]
[423009694,1779745872000,-155.458082,0.00027397,30]
[423009703,1779745872000,-500.0,0.000274,2]
[423009693,1779745872000,-163.40446995,0.00027397,30]
[423009692,1779745872000,-183.01416966,0.00027397,7]
[423009702,1779745872000,-500.0,0.000274,2]
[423009691,1779745872000,-176.41341686,0.00027397,30]
[423009701,1779745872000,-500.0,0.000274,2]
[423009699,1779745872000,-500.0,0.000274,2]
[423009690,1779745872000,-178.98637645,0.00027397,30]
[423009704,1779745872000,-500.0,0.000274,2]
[423009719,1779745872000,-1088.27263551,0.00027516,5]
[423009705,1779745872000,-500.0,0.000274,2]
[423009707,1779745872000,-561.08,0.000274,2]
[423009715,1779745872000,-162.88,0.000275,14]
[423009716,1779745872000,-162.89,0.000275,14]
[423009713,1779745872000,-800.64,0.000274,2]
[423009714,1779745872000,-162.88,0.000275,14]
[423009712,1779745872000,-500.0,0.000274,2]
[423009708,1779745872000,-10813.92,0.000274,14]
[423009711,1779745872000,-500.0,0.000274,2]
[423009709,1779745872000,-500.0,0.000274,2]
[423009710,1779745872000,-500.0,0.000274,2]
[423009717,1779745872000,-204.31035881,0.000275,2]
[423009718,1779745872000,-1021.3565485,0.00027516,5]
[423009686,1779745872000,-16290.83,0.00027397,10]
[423009706,1779745872000,-500.0,0.000274,2]
[423009687,1779745872000,-13575.7,0.00027397,10]
[423009659,1779745872000,-899.706864,0.00027397,2]
[423009677,1779745872000,-899.706864,0.00027397,2]
[423009660,1779745872000,-151.0,0.00027397,2]
[423009661,1779745872000,-899.706864,0.00027397,2]
[423009657,1779745872000,-248.455455,0.00027397,2]
[423009658,1779745872000,-151.0,0.00027397,2]
[423009662,1779745872000,-151.0,0.00027397,2]
[423009656,1779745872000,-904.138649,0.00027397,2]
[423009664,1779745872000,-151.0,0.00027397,2]
[423009675,1779745872000,-899.706864,0.00027397,2]
[423009674,1779745872000,-899.706864,0.00027397,2]
[423009669,1779745872000,-166.770871,0.00027397,2]
[423009666,1779745872000,-899.706864,0.00027397,2]
[423009665,1779745872000,-151.0,0.00027397,2]
[423009668,1779745872000,-899.706864,0.00027397,2]
[423009667,1779745872000,-151.0,0.00027397,2]
[423009663,1779745872000,-899.706864,0.00027397,2]
[423009670,1779745872000,-899.706864,0.00027397,2]
[423009672,1779745872000,-527.53,0.00027397,2]
[423009673,1779745872000,-899.706864,0.00027397,2]
[423009671,1779745872000,-899.706864,0.00027397,2]
[423009676,1779745872000,-899.706864,0.00027397,2]
[423009683,1779745872000,-899.706864,0.00027397,2]
[423009679,1779745872000,-899.706864,0.00027397,2]
[423009684,1779745872000,-899.706864,0.00027397,2]
[423009680,1779745872000,-899.706864,0.00027397,2]
[423009678,1779745872000,-899.706864,0.00027397,2]
[423009688,1779745872000,-209.05558465,0.00027397,7]
[423009682,1779745872000,-899.706864,0.00027397,2]
[423009681,1779745872000,-899.706864,0.00027397,2]
[423009685,1779745872000,-899.70686797,0.00027397,2]
[423009689,1779745872000,-153.2939329,0.00027397,7]
[423009720,1779745872000,-1083.89829515,0.00027516,5]
[423009781,1779745872000,-5000.0,0.000278,2]
[423009723,1779745872000,-1000.56352136,0.00027516,5]
[423009754,1779745872000,-206.1,0.0002758,7]
[423009758,1779745872000,-206.1,0.00027611,30]
[423009761,1779745872000,-2255.95,0.0002766,7]
[423009760,1779745872000,-4176.92,0.0002766,7]
[423009762,1779745872000,-1371.29,0.0002766,7]
[423009759,1779745872000,-206.1,0.00027641,2]
[423009768,1779745872000,-1776.64,0.0002767,7]
[423009769,1779745872000,-206.34,0.0002767,2]
[423009766,1779745872000,-1775.77,0.00027669,2]
[423009764,1779745872000,-1775.77,0.00027669,2]
[423009763,1779745872000,-1775.77,0.00027669,7]
[423009765,1779745872000,-1775.77,0.00027669,7]
[423009767,1779745872000,-1775.77,0.00027669,7]
[423009770,1779745872000,-878.09,0.0002767,7]
[423009751,1779745872000,-1371.29,0.0002755,7]
[423009782,1779745872000,-4176.92,0.00027816,2]
[423009783,1779745872000,-2255.95,0.00027816,2]
[423009777,1779745872000,-200.0,0.00027776,2]
[423009773,1779745872000,-10813.92,0.000277,14]
[423009771,1779745872000,-206.1,0.00027672,7]
[423009774,1779745872000,-206.1,0.00027702,30]
[423009775,1779745872000,-206.1,0.00027733,2]
[423009776,1779745872000,-206.1,0.00027763,7]
[423009779,1779745872000,-290.3986294,0.00027776,2]
[423009721,1779745872000,-1043.20000026,0.00027516,5]
[423009780,1779745872000,-206.1,0.00027794,30]
[423009785,1779745872000,-206.1,0.00027824,2]
[423009784,1779745872000,-1371.29,0.00027816,2]
[423009786,1779745872000,-734704.02321462,0.00027846,7]
[423009787,1779745872000,-206.1,0.00027855,7]
[423009772,1779745872000,-1630.46,0.000277,2]
[423009749,1779745872000,-1371.29,0.0002755,7]
[423009778,1779745872000,-2884.75459676,0.00027776,2]
[423009748,1779745872000,-1371.29,0.0002755,2]
[423009747,1779745872000,-1371.29,0.0002755,7]
[423009728,1779745872000,-1132.23952034,0.00027516,5]
[423009729,1779745872000,-1049.41178689,0.00027516,5]
[423009722,1779745872000,-1141.15056838,0.00027516,5]
[423009726,1779745872000,-1144.08422903,0.00027516,5]
[423009724,1779745872000,-1055.99065774,0.00027516,5]
[423009727,1779745872000,-1126.8329668,0.00027516,5]
[423009730,1779745872000,-1098.9549441,0.00027516,5]
[423009732,1779745872000,-1159.13702279,0.00027516,5]
[423009733,1779745872000,-150.0,0.0002755,2]
[423009734,1779745872000,-206.1,0.0002755,2]
[423009742,1779745872000,-2255.95,0.0002755,2]
[423009741,1779745872000,-2255.95,0.0002755,7]
[423009731,1779745872000,-1107.8520758,0.00027516,5]
[423009737,1779745872000,-4176.92,0.0002755,7]
[423009725,1779745872000,-1064.25813486,0.00027516,5]
[423009743,1779745872000,-2255.95,0.0002755,7]
[423009738,1779745872000,-4176.92,0.0002755,2]
[423009750,1779745872000,-1371.29,0.0002755,2]
[423009755,1779745872000,-2110.0,0.00027582,2]
[423009757,1779745872000,-2765.7,0.000276,2]
[423009744,1779745872000,-2255.95,0.0002755,2]
[423009756,1779745872000,-10993.11,0.000276,2]
[423009753,1779745872000,-152.0,0.00027556,7]
[423009752,1779745872000,-1371.29,0.0002755,2]
[423009745,1779745872000,-2255.95,0.0002755,7]
[423009740,1779745872000,-4176.92,0.0002755,2]
[423009735,1779745872000,-4176.92,0.0002755,7]
[423009739,1779745872000,-4176.92,0.0002755,7]
[423009746,1779745872000,-2255.95,0.0002755,2]
[423009736,1779745872000,-4176.92,0.0002755,2]
[423009826,1779745873000,-2765.7,0.000282,2]
[423009823,1779745873000,-1776.64,0.00028141,2]
[423009828,1779745873000,-206.34,0.00028243,7]
[423009827,1779745873000,-301.05237461,0.000282,20]
[423009815,1779745873000,-359.851572,0.00028082,60]
[423009832,1779745873000,-644.79446245,0.00028321,2]
[423009824,1779745873000,-878.09,0.00028141,2]
[423009825,1779745873000,-10993.11,0.000282,2]
[423009819,1779745873000,-206.23,0.0002813,7]
[423009812,1779745873000,-206.1,0.00028068,30]
[423009822,1779745873000,-1371.36,0.0002813,2]
[423009830,1779745873000,-10813.92,0.000283,14]
[423009833,1779745873000,-200.0,0.00028324,2]
[423009831,1779745873000,-670.58624095,0.00028321,2]
[423009821,1779745873000,-2255.97,0.0002813,2]
[423009829,1779745873000,-3548.7,0.00028267,2]
[423009836,1779745873000,-1630.46,0.000284,2]
[423009835,1779745873000,-301.14337869,0.00028324,2]
[423009837,1779745873000,-897.71,0.000284,7]
[423009845,1779745873000,-168.76761046,0.00028697,2]
[423009838,1779745873000,-12400.0,0.00028463,7]
[423009834,1779745873000,-2991.49051684,0.00028324,2]
[423009839,1779745873000,-152.0,0.00028486,8]
[423009817,1779745873000,-2500.0,0.00028082,120]
[423009842,1779745873000,-238.97,0.00028571,30]
[423009820,1779745873000,-4176.92,0.0002813,2]
[423009816,1779745873000,-2165.26,0.00028082,2]
[423009795,1779745873000,-1371.29,0.00027972,7]
[423009818,1779745873000,-206.1,0.00028099,2]
[423009841,1779745873000,-551.56,0.00028529,7]
[423009793,1779745873000,-4176.92,0.00027972,7]
[423009790,1779745873000,-1000.0,0.00027945,2]
[423009788,1779745873000,-206.1,0.00027885,30]
[423009789,1779745873000,-206.1,0.00027916,2]
[423009794,1779745873000,-2255.95,0.00027972,7]
[423009792,1779745873000,-206.1,0.00027946,7]
[423009791,1779745873000,-1005.06,0.00027945,5]
[423009796,1779745873000,-206.1,0.00027977,30]
[423009806,1779745873000,-720.93520295,0.00028,60]
[423009807,1779745873000,-600.0,0.00028,2]
[423009797,1779745873000,-2500.0,0.00028,2]
[423009798,1779745873000,-1164.43,0.00028,7]
[423009801,1779745873000,-20000.0,0.00028,2]
[423009800,1779745873000,-200.0,0.00028,20]
[423009799,1779745873000,-500.0,0.00028,7]
[423009803,1779745873000,-51636.20330728,0.00028,2]
[423009802,1779745873000,-10813.92,0.00028,14]
[423009805,1779745873000,-318.0,0.00028,2]
[423009804,1779745873000,-160.0,0.00028,2]
[423009808,1779745873000,-3386.80556182,0.00028,2]
[423009810,1779745873000,-206.1,0.00028007,2]
[423009809,1779745873000,-1000.0,0.00028,30]
[423009811,1779745873000,-206.1,0.00028038,7]
[423009813,1779745873000,-150.0,0.00028078,2]
[423009814,1779745873000,-150.0,0.0002808,2]
[423009844,1779745873000,-1337.18655141,0.00028646,15]
[423009871,1779745873000,-158.00280313,0.00028775,7]
[423009843,1779745873000,-10813.92,0.000286,14]
[423009875,1779745873000,-1000.0,0.000288,30]
[423009876,1779745873000,-206.34,0.00028816,30]
[423009881,1779745873000,-168.19406025,0.00028971,7]
[423009877,1779745873000,-1800.0,0.000289,2]
[423009885,1779745873000,-158.61139559,0.00028972,7]
[423009880,1779745873000,-222.09,0.0002896,13]
[423009879,1779745873000,-222.09,0.0002896,13]
[423009878,1779745873000,-276.2425,0.0002896,13]
[423009884,1779745873000,-200.83607921,0.00028972,7]
[423009882,1779745873000,-156.76734033,0.00028972,7]
[423009883,1779745873000,-164.29197807,0.00028972,7]
[423009887,1779745873000,-162.59257336,0.00028972,7]
[423009886,1779745873000,-173.43536934,0.00028972,7]
[423009897,1779745873000,-265.0,0.00029,60]
[423009888,1779745873000,-1101.84,0.00028976,7]
[423009890,1779745873000,-1090.0,0.00029,2]
[423009891,1779745873000,-5282.54583363,0.00029,2]
[423009889,1779745873000,-228.0,0.00028999,120]
[423009895,1779745873000,-10000.0,0.00029,2]
[423009892,1779745873000,-172.19199234,0.00029,14]
[423009896,1779745873000,-240.76,0.00029,2]
[423009894,1779745873000,-10000.0,0.00029,2]
[423009898,1779745873000,-194.95,0.00029,2]
[423009900,1779745873000,-650.0,0.00029,2]
[423009840,1779745873000,-168.2,0.00028493,2]
[423009874,1779745873000,-559.05,0.00028787,30]
[423009869,1779745873000,-156.891409,0.00028767,7]
[423009893,1779745873000,-5223.0,0.00029,2]
[423009899,1779745873000,-200204.88093738,0.00029,2]
[423009872,1779745873000,-168.63573053,0.00028775,7]
[423009847,1779745873000,-199.14122317,0.00028705,7]
[423009846,1779745873000,-477.77717495,0.00028704,7]
[423009848,1779745873000,-152.66562631,0.00028705,7]
[423009851,1779745873000,-328.61761262,0.00028705,7]
[423009850,1779745873000,-243.72298917,0.00028705,7]
[423009852,1779745873000,-151.37894998,0.00028705,7]
[423009853,1779745873000,-169.02112692,0.00028705,7]
[423009854,1779745873000,-325.83476492,0.00028705,7]
[423009856,1779745873000,-166.07509177,0.00028705,7]
[423009855,1779745873000,-163.39471184,0.00028705,7]
[423009858,1779745873000,-184.17901284,0.0002871,7]
[423009849,1779745873000,-295.56906944,0.00028705,7]
[423009859,1779745873000,-1593.0,0.00028715,2]
[423009857,1779745873000,-163.43827363,0.00028709,2]
[423009873,1779745873000,-190.46655014,0.00028775,7]
[423009868,1779745873000,-151.0,0.00028767,7]
[423009865,1779745873000,-166.03522415,0.00028756,7]
[423009866,1779745873000,-151.0,0.00028767,7]
[423009863,1779745873000,-171.24198313,0.00028756,7]
[423009867,1779745873000,-151.0,0.00028767,7]
[423009864,1779745873000,-179.90292617,0.00028756,7]
[423009861,1779745873000,-502.37,0.00028752,14]
[423009860,1779745873000,-174.00178734,0.00028748,7]
[423009862,1779745873000,-175.3800009,0.00028756,7]
[423009870,1779745873000,-300.0,0.00028767,2]
[423009923,1779745874000,-1012.27,0.00029,2]
[423009927,1779745874000,-219.34874838,0.00029,2]
[423009924,1779745874000,-1479.25613974,0.00029,2]
[423009922,1779745874000,-385.96290451,0.00029,2]
[423009934,1779745874000,-547.19090485,0.00029,2]
[423009933,1779745874000,-2500.0,0.00029,2]
[423009929,1779745874000,-18228.0407228,0.00029,2]
[423009930,1779745874000,-510.22877069,0.00029,2]
[423009932,1779745874000,-810000.0,0.00029,30]
[423009937,1779745874000,-4612.70035433,0.00029,2]
[423009928,1779745874000,-531.35460704,0.00029,2]
[423009936,1779745874000,-6024.0,0.00029,2]
[423009935,1779745874000,-488.0,0.00029,2]
[423009938,1779745874000,-213.77,0.00029,2]
[423009939,1779745874000,-10541.391763,0.00029,2]
[423009940,1779745874000,-1725614.70541599,0.00029,2]
[423009942,1779745874000,-574.87138438,0.00029,2]
[423009925,1779745874000,-251.0,0.00029,2]
[423009941,1779745874000,-2273.9358932,0.00029,2]
[423009931,1779745874000,-220.34,0.00029,120]
[423009926,1779745874000,-426.0900691,0.00029,2]
[423009908,1779745874000,-6309.0,0.00029,2]
[423009918,1779745874000,-1476.41,0.00029,7]
[423009943,1779745874000,-1491.63,0.00029,2]
[423009907,1779745874000,-6309.38,0.00029,2]
[423009906,1779745874000,-1210.0,0.00029,2]
[423009902,1779745874000,-26822.0,0.00029,2]
[423009901,1779745874000,-7718.97,0.00029,2]
[423009909,1779745874000,-265.0,0.00029,2]
[423009905,1779745874000,-1164.43,0.00029,7]
[423009904,1779745874000,-1284.55,0.00029,2]
[423009903,1779745874000,-2990.08957699,0.00029,2]
[423009911,1779745874000,-791269.34597038,0.00029,30]
[423009910,1779745874000,-2022.0,0.00029,2]
[423009913,1779745874000,-150.0,0.00029,2]
[423009912,1779745874000,-150.0,0.00029,2]
[423009915,1779745874000,-5115.33,0.00029,2]
[423009920,1779745874000,-4467.01340314,0.00029,2]
[423009917,1779745874000,-3850.0,0.00029,2]
[423009919,1779745874000,-1295.2062874,0.00029,2]
[423009916,1779745874000,-182.964,0.00029,2]
[423009914,1779745874000,-150.0,0.00029,2]
[423009921,1779745874000,-23792.31370069,0.00029,10]
[423009949,1779745874000,-500.0,0.00029,2]
[423009945,1779745874000,-190.33379237,0.00029,2]
[423009974,1779745874000,-500.0,0.00029213,2]
[423009972,1779745874000,-500.0,0.00029213,2]
[423009970,1779745874000,-500.0,0.00029213,2]
[423009971,1779745874000,-500.0,0.00029213,2]
[423009975,1779745874000,-500.0,0.00029213,2]
[423009978,1779745874000,-626.0,0.00029222,2]
[423009979,1779745874000,-1355.0,0.00029222,2]
[423009976,1779745874000,-500.0,0.00029213,2]
[423009980,1779745874000,-3547.0,0.00029222,2]
[423009981,1779745874000,-519.0,0.00029222,2]
[423009977,1779745874000,-700.97,0.00029213,2]
[423009983,1779745874000,-418.0,0.00029222,2]
[423009986,1779745874000,-152.0,0.00029415,9]
[423009987,1779745874000,-1776.64,0.00029444,7]
[423009982,1779745874000,-931.0,0.00029222,2]
[423009988,1779745874000,-878.09,0.00029444,7]
[423009985,1779745874000,-206.34,0.00029389,2]
[423009984,1779745874000,-1500.0,0.000293,7]
[423009947,1779745874000,-1416.15810826,0.00029,2]
[423009989,1779745874000,-151.36785639,0.00029452,30]
[423009969,1779745874000,-841.63,0.00029213,2]
[423009968,1779745874000,-500.0,0.00029213,2]
[423009973,1779745874000,-500.0,0.00029213,2]
[423009967,1779745874000,-500.0,0.00029213,2]
[423009944,1779745874000,-1491.62,0.00029,2]
[423009946,1779745874000,-852.7,0.00029,2]
[423009948,1779745874000,-533.23,0.00029,2]
[423009951,1779745874000,-2604.590423,0.00029,2]
[423009950,1779745874000,-526.02506678,0.00029,2]
[423009966,1779745874000,-500.0,0.00029213,2]
[423009956,1779745874000,-274.26,0.00029205,7]
[423009954,1779745874000,-316.64411055,0.00029,2]
[423009955,1779745874000,-402.5,0.000291,2]
[423009952,1779745874000,-7541.78,0.00029,7]
[423009953,1779745874000,-373.5,0.00029,2]
[423009957,1779745874000,-500.0,0.00029213,2]
[423009959,1779745874000,-500.0,0.00029213,2]
[423009958,1779745874000,-500.0,0.00029213,2]
[423009961,1779745874000,-500.0,0.00029213,2]
[423009964,1779745874000,-500.0,0.00029213,2]
[423009962,1779745874000,-500.0,0.00029213,2]
[423009963,1779745874000,-500.0,0.00029213,2]
[423009960,1779745874000,-500.0,0.00029213,2]
[423009965,1779745874000,-500.0,0.00029213,2]
[423010023,1779745875000,-452.0,0.00029874,30]
[423010025,1779745875000,-208.0,0.00029874,30]
[423010028,1779745875000,-156.0,0.00029876,30]
[423010024,1779745875000,-1497.0,0.00029874,30]
[423010019,1779745875000,-2632.43466443,0.0002985,7]
[423010029,1779745875000,-164.0,0.00029876,30]
[423010014,1779745875000,-1000.0,0.0002977,2]
[423010030,1779745875000,-2067.0,0.00029876,30]
[423010020,1779745875000,-154.0,0.00029874,30]
[423010022,1779745875000,-158.0,0.00029874,30]
[423010027,1779745875000,-1789.0,0.00029876,30]
[423010026,1779745875000,-357.0,0.00029874,30]
[423010037,1779745875000,-241.13380601,0.0002999,2]
[423010032,1779745875000,-157.0,0.00029876,30]
[423010042,1779745875000,-176.37,0.0003,2]
[423010031,1779745875000,-544.0,0.00029876,30]
[423010036,1779745875000,-188.88,0.00029983,60]
[423010033,1779745875000,-80201.91428448,0.000299,2]
[423010038,1779745875000,-163.81,0.00029999,7]
[423010041,1779745875000,-258.6986994,0.0003,7]
[423010034,1779745875000,-897.71,0.000299,7]
[423010035,1779745875000,-206.34,0.00029963,7]
[423010043,1779745875000,-7578.24356624,0.0003,2]
[423010015,1779745875000,-1000.0,0.0002977,2]
[423010021,1779745875000,-156.0,0.00029874,30]
[423010018,1779745875000,-1000.0,0.0002977,2]
[423010005,1779745875000,-339.97155495,0.000297,2]
[423010017,1779745875000,-1000.0,0.0002977,2]
[423009990,1779745875000,-1169.79937992,0.000295,38]
[423009991,1779745875000,-2300.31610461,0.000295,38]
[423009993,1779745875000,-2738.92443132,0.000295,38]
[423009992,1779745875000,-2557.25791633,0.000295,38]
[423009995,1779745875000,-3102.25746157,0.000295,38]
[423009994,1779745875000,-2920.59094644,0.000295,38]
[423009996,1779745875000,-3281.49053409,0.000295,38]
[423010000,1779745875000,-222.09,0.00029508,13]
[423009999,1779745875000,-222.09,0.00029508,13]
[423009997,1779745875000,-1500.0,0.000295,2]
[423009998,1779745875000,-276.2425,0.00029508,13]
[423010001,1779745875000,-339.97155497,0.000297,2]
[423010002,1779745875000,-3105.18356086,0.000297,2]
[423010003,1779745875000,-339.97155495,0.000297,2]
[423010004,1779745875000,-3105.18356084,0.000297,2]
[423010009,1779745875000,-1000.0,0.00029756,2]
[423010012,1779745875000,-1000.0,0.00029756,2]
[423010013,1779745875000,-1000.0,0.00029756,2]
[423010016,1779745875000,-1000.0,0.0002977,2]
[423010008,1779745875000,-931.76,0.00029749,10]
[423010010,1779745875000,-1000.0,0.00029756,2]
[423010006,1779745875000,-3105.18356084,0.000297,2]
[423010011,1779745875000,-1000.0,0.00029756,2]
[423010007,1779745875000,-238.97,0.00029746,30]
[423010039,1779745875000,-12937.24227785,0.0003,5]
[423010086,1779745875000,-338.04225385,0.00030047,7]
[423010045,1779745875000,-1067.59,0.0003,120]
[423010072,1779745875000,-200.0,0.0003,2]
[423010076,1779745875000,-337.53522092,0.00030039,2]
[423010075,1779745875000,-200.0,0.0003,2]
[423010073,1779745875000,-200.0,0.0003,2]
[423010071,1779745875000,-200.0,0.0003,2]
[423010078,1779745875000,-398.28244634,0.00030047,7]
[423010077,1779745875000,-955.5543499,0.00030046,7]
[423010074,1779745875000,-1500.0,0.0003,2]
[423010079,1779745875000,-305.33125261,0.00030047,7]
[423010085,1779745875000,-302.75789996,0.00030047,7]
[423010084,1779745875000,-657.23522524,0.00030047,7]
[423010082,1779745875000,-487.44597835,0.00030047,7]
[423010091,1779745875000,-154.68463415,0.00030051,2]
[423010089,1779745875000,-332.15018355,0.00030047,7]
[423010088,1779745875000,-326.78942368,0.00030047,7]
[423010087,1779745875000,-651.66952985,0.00030047,7]
[423010094,1779745875000,-222.09,0.00030056,13]
[423010093,1779745875000,-276.2425,0.00030056,13]
[423010092,1779745875000,-368.35802568,0.00030052,7]
[423010090,1779745875000,-326.87654726,0.00030051,2]
[423010096,1779745875000,-11957.62071916,0.0003008,7]
[423010095,1779745875000,-222.09,0.00030056,13]
[423010040,1779745875000,-258.6986994,0.0003,7]
[423010069,1779745875000,-650.0,0.0003,2]
[423010080,1779745875000,-167.60156207,0.00030047,7]
[423010083,1779745875000,-237.88390012,0.00030047,7]
[423010070,1779745875000,-200.0,0.0003,2]
[423010055,1779745875000,-5000.12345678,0.0003,5]
[423010081,1779745875000,-591.13813887,0.00030047,7]
[423010044,1779745875000,-185.70137622,0.0003,120]
[423010047,1779745875000,-1014.7220151,0.0003,4]
[423010048,1779745875000,-25000.0,0.0003,2]
[423010046,1779745875000,-1164.43,0.0003,7]
[423010052,1779745875000,-175.49,0.0003,11]
[423010049,1779745875000,-722.41693261,0.0003,2]
[423010050,1779745875000,-249.44021561,0.0003,2]
[423010051,1779745875000,-235.0,0.0003,2]
[423010054,1779745875000,-22348.15361388,0.0003,5]
[423010056,1779745875000,-10018.15379503,0.0003,6]
[423010053,1779745875000,-190.0,0.0003,120]
[423010062,1779745875000,-1122.921458,0.0003,2]
[423010059,1779745875000,-1000.0,0.0003,120]
[423010067,1779745875000,-106549.72379126,0.0003,7]
[423010060,1779745875000,-20211.61037318,0.0003,2]
[423010068,1779745875000,-106549.72379126,0.0003,7]
[423010061,1779745875000,-87877.0,0.0003,2]
[423010065,1779745875000,-165.81604603,0.0003,2]
[423010066,1779745875000,-1000.0,0.0003,30]
[423010064,1779745875000,-1000.0,0.0003,2]
[423010057,1779745875000,-5610.83905704,0.0003,7]
[423010058,1779745875000,-5610.83905704,0.0003,7]
[423010063,1779745875000,-1848.90914031,0.0003,2]
[423010134,1779745876000,-200.0,0.00030137,2]
[423010129,1779745876000,-1000.0,0.00030137,10]
[423010135,1779745876000,-1003.16,0.00030137,2]
[423010142,1779745876000,-336.3881205,0.00030323,7]
[423010138,1779745876000,-234.57432257,0.00030137,2]
[423010128,1779745876000,-1000.0,0.00030137,10]
[423010139,1779745876000,-300.0,0.00030137,2]
[423010127,1779745876000,-1000.0,0.00030137,10]
[423010126,1779745876000,-1000.0,0.00030137,10]
[423010137,1779745876000,-1463.87532686,0.00030137,2]
[423010132,1779745876000,-1000.0,0.00030137,10]
[423010141,1779745876000,-3548.7,0.00030239,2]
[423010152,1779745876000,-325.18514672,0.00030324,7]
[423010140,1779745876000,-2988.6,0.000302,2]
[423010136,1779745876000,-329.6,0.00030137,120]
[423010144,1779745876000,-198.40505424,0.00030324,7]
[423010146,1779745876000,-206.61708019,0.00030324,7]
[423010145,1779745876000,-196.4994554,0.00030324,7]
[423010143,1779745876000,-313.53468065,0.00030324,7]
[423010150,1779745876000,-197.34153315,0.00030324,7]
[423010148,1779745876000,-401.67215843,0.00030324,7]
[423010151,1779745876000,-346.87073868,0.00030324,7]
[423010147,1779745876000,-328.58395614,0.00030324,7]
[423010153,1779745876000,-152.0,0.00030344,10]
[423010124,1779745876000,-1000.0,0.00030137,10]
[423010133,1779745876000,-1000.0,0.00030137,10]
[423010125,1779745876000,-1000.0,0.00030137,10]
[423010099,1779745876000,-342.48396626,0.000301,7]
[423010121,1779745876000,-934.91,0.00030137,2]
[423010149,1779745876000,-317.22279118,0.00030324,7]
[423010106,1779745876000,-196.98038312,0.0003012,7]
[423010101,1779745876000,-332.0704483,0.000301,7]
[423010100,1779745876000,-359.80585234,0.000301,7]
[423010098,1779745876000,-350.76000181,0.000301,7]
[423010097,1779745876000,-348.00357467,0.00030091,7]
[423010105,1779745876000,-316.00560627,0.0003012,7]
[423010103,1779745876000,-188.12028571,0.0003012,7]
[423010102,1779745876000,-153.6515425,0.000301,7]
[423010104,1779745876000,-241.68354649,0.0003012,7]
[423010107,1779745876000,-225.11237194,0.0003012,7]
[423010118,1779745876000,-14088.30170316,0.0003013,2]